fUST/lending_fUST_20241209
["ID","MTS","AMOUNT","RATE_DAILY","PERIOD"]
[344731855,1733758233083,-169.17400201,0.0002159,2]
[344731856,1733758233096,-587.0,0.00022435,2]
[344731857,1733758233107,-587.0,0.00022842,2]
[344731858,1733758233118,-351.0167534,0.00023288,2]
[344731859,1733758233129,-167.5637397,0.00023288,2]
[344731860,1733758233139,-2850.0,0.000235,2]
[344731861,1733758233150,-184.76198623,0.00023562,2]
[344731912,1733758238550,-2082.89687304,0.00018689,2]
[344731916,1733758238567,-1.44810577,0.00023562,2]
[344731919,1733758238581,-361.367,0.0002375,2]
[344731922,1733758238599,-688.37502449,0.00024,2]
[344731925,1733758238615,-7276.42251477,0.00024,2]
[344731927,1733758238630,-160.0,0.0002404,2]
[344731930,1733758238645,-151.542192,0.00024041,7]
[344731933,1733758238660,-306.747878,0.00024041,7]
[344731935,1733758238674,-306.747878,0.00024041,7]
[344731938,1733758238688,-151.0,0.00024041,7]
[344731940,1733758238704,-151.0,0.00024041,7]
[344731943,1733758238720,-151.0,0.00024041,7]
[344731945,1733758238733,-151.599936,0.00024041,7]
[344731948,1733758238744,-243.158347,0.00024041,7]
[344731950,1733758238757,-243.158347,0.00024041,7]
[344731952,1733758238770,-151.0,0.00024041,7]
[344731955,1733758238785,-179.466424,0.00024041,7]
[344731957,1733758238799,-151.0,0.00024041,7]
[344731958,1733758238815,-151.0,0.00024041,7]
[344731959,1733758238830,-290.288251,0.00024041,7]
[344731960,1733758238843,-290.288251,0.00024041,7]
[344731961,1733758238856,-828.701835,0.00024041,7]
[344731962,1733758238868,-828.701835,0.00024041,7]
[344731963,1733758238884,-151.0,0.00024041,7]
[344731964,1733758238898,-151.0,0.00024041,7]
[344731965,1733758238909,-539.83865,0.00024041,7]
[344731966,1733758238923,-151.0,0.00024041,7]
[344731967,1733758238935,-151.0,0.00024041,7]
[344731968,1733758238947,-466.03069805,0.00024041,7]
[344731971,1733758238965,-73.80795195,0.00024041,7]
[344731973,1733758238978,-151.0,0.00024041,7]
[344731976,1733758238991,-151.0,0.00024041,7]
[344731978,1733758239005,-151.453189,0.00024041,7]
[344731980,1733758239020,-151.0,0.00024041,7]
[344731982,1733758239032,-151.0,0.00024041,7]
[344731985,1733758239044,-297.663002,0.00024041,7]
[344731987,1733758239056,-297.663002,0.00024041,7]
[344731988,1733758239068,-151.0,0.00024041,7]
[344731990,1733758239080,-545.642798,0.00024041,7]
[344731992,1733758239093,-545.642798,0.00024041,7]
[344731993,1733758239108,-184.310378,0.00024041,7]
[344731996,1733758239128,-151.0,0.00024041,7]
[344731998,1733758239140,-184.310378,0.00024041,7]
[344732000,1733758239152,-151.0,0.00024041,7]
[344732002,1733758239166,-184.310378,0.00024041,7]
[344732005,1733758239178,-184.310378,0.00024041,7]
[344732007,1733758239190,-151.0,0.00024041,7]
[344732009,1733758239202,-151.0,0.00024041,7]
[344732012,1733758239215,-151.0,0.00024041,7]
[344732014,1733758239227,-252.845371,0.00024041,7]
[344732016,1733758239240,-151.0,0.00024041,7]
[344732018,1733758239252,-151.0,0.00024041,7]
[344732020,1733758239264,-812.140882,0.00024041,7]
[344732022,1733758239277,-812.140882,0.00024041,7]
[344732023,1733758239290,-151.0,0.00024041,7]
[344732025,1733758239302,-1135.718219,0.00024041,7]
[344732027,1733758239314,-1135.718219,0.00024041,7]
[344732028,1733758239326,-857.89351,0.00024041,7]
[344732029,1733758239338,-857.89351,0.00024041,7]
[344732030,1733758239355,-409.271661,0.00024041,7]
[344732031,1733758239367,-409.271661,0.00024041,7]
[344732032,1733758239380,-155.044331,0.00024041,7]
[344732033,1733758239392,-155.044331,0.00024041,7]
[344732034,1733758239404,-1226.635485,0.00024041,7]
[344732035,1733758239416,-1226.635485,0.00024041,7]
[344732036,1733758239429,-642.359388,0.00024041,7]
[344732037,1733758239441,-642.359388,0.00024041,7]
[344732038,1733758239454,-823.0,0.00024457,2]
[344732039,1733758239466,-49175.87267798,0.000245,2]
[344732040,1733758239479,-155.00065006,0.00024622,2]
[344732041,1733758239491,-151.0,0.000247,9]
[344732042,1733758239501,-151.0,0.000248,9]
[344732043,1733758239510,-500.0,0.00024973,2]
[344732044,1733758239520,-500.0,0.00024973,2]
[344732045,1733758239530,-151.0,0.00024973,7]
[344732046,1733758239539,-151.0,0.00024973,7]
[344732047,1733758239549,-301.974967,0.00024973,7]
[344732048,1733758239721,-301.974967,0.00024973,7]
[344732049,1733758239731,-151.0,0.00024973,7]
[344732050,1733758239741,-151.0,0.00024973,7]
[344732051,1733758239751,-181.66153152,0.00024999,2]
[344732052,1733758239761,-78071.14862317,0.00025,7]
[344732053,1733758239773,-294731.60730381,0.00025,7]
[344732077,1733758240493,-679.26040594,0.00025,7]
[344732078,1733758240505,-2000.0,0.00025,7]
[344732079,1733758240518,-223439.18366708,0.00025,7]
[344732080,1733758240529,-149984.02452858,0.00025,7]
[344732081,1733758240539,-21039.6090339,0.00025,7]
[344732124,1733758243807,-9960.58690002,0.00025,7]
[344732125,1733758243819,-18919.24666042,0.00025,7]
[344732126,1733758243832,-4377.66770193,0.00025,7]
[344732157,1733758246493,-736.63110029,0.00025,7]
[344732158,1733758246506,-11576.4,0.00025,7]
[344732159,1733758246518,-7538.71050379,0.00025,7]
[344732160,1733758246528,-491.82203724,0.00025,2]
[344732161,1733758246538,-1045.00677225,0.00025,2]
[344732162,1733758246547,-151.0,0.00025,7]
[344732163,1733758246557,-151.0,0.00025,7]
[344732164,1733758246567,-151.0,0.00025,7]
[344732165,1733758246577,-151.0,0.00025,7]
[344732166,1733758246586,-151.0,0.00025,7]
[344732167,1733758246595,-119.06068672,0.00025,7]
[344732169,1733758270115,499.5,0.00030013,30]
[344732170,1733758462159,5000.0,0.00025,11]
[344732214,1733758744997,270.0,0.00029961,120]
[344732274,1733759000440,5000.0,0.00025,11]
[344732275,1733759025618,208.465531,0.00013973,2]
[344732376,1733759436958,-5000.0,0.00020243,2]
[344732377,1733759436968,-208.465531,0.00020447,2]
[344732378,1733759436979,-2629.83514785,0.00021395,2]
[344732379,1733759436988,-300.0,0.00021893,2]
[344732380,1733759436998,-300.0,0.00021893,2]
[344732382,1733759437008,-4719.90282272,0.00021894,2]
[344732384,1733759437026,-249.1334364,0.00023307,2]
[344732385,1733759437036,-177.993973,0.00023384,2]
[344732387,1733759437046,-4681.1057387,0.00023714,2]
[344732388,1733759437056,-346.288,0.0002375,2]
[344732389,1733759437065,-186.210092,0.00023768,2]
[344732390,1733759437074,-420.0,0.00023793,2]
[344732391,1733759437084,-3093.6680632,0.00023958,2]
[344732392,1733759437094,-420.0,0.00024083,2]
[344732393,1733759437103,-351.1524441,0.00024219,2]
[344732394,1733759437113,-351.1524441,0.00024219,2]
[344732395,1733759437123,-351.1524441,0.00024219,2]
[344732396,1733759437132,-351.1524441,0.00024219,2]
[344732397,1733759437142,-351.1524441,0.00024219,2]
[344732398,1733759437153,-351.1524441,0.00024219,2]
[344732399,1733759437163,-351.1524441,0.00024219,2]
[344732400,1733759437172,-351.1524441,0.00024219,2]
[344732401,1733759437182,-351.1524441,0.00024219,2]
[344732402,1733759437191,-169.9362695,0.00024219,2]
[344732403,1733759437201,-6826.72485371,0.00024447,2]
[344732404,1733759437211,-155.0000325,0.0002456,2]
[344732405,1733759437221,-150.0,0.00024633,2]
[344732406,1733759437230,-6826.72485371,0.00024756,2]
[344732407,1733759437239,-213.498,0.000249,8]
[344732408,1733759437249,-150.0,0.00025,10]
[344732409,1733759437259,-34050.94411893,0.00025,7]
[344732410,1733759437269,-181.3648525,0.00025,5]
[344732411,1733759437279,-274.790466,0.00025,2]
[344732412,1733759437289,-165.0,0.00025,2]
[344732413,1733759437299,-454.4568209,0.00025041,2]
[344732414,1733759437309,-419.46053732,0.00025073,2]
[344732415,1733759437319,-151.0,0.00025077,4]
[344732416,1733759437330,-296.49707633,0.00025089,2]
[344732417,1733759437340,-216.81678976,0.00025089,2]
[344732418,1733759437350,-229.57804439,0.00025089,2]
[344732419,1733759437360,-119175.23248271,0.0002509,2]
[344732420,1733759437372,-135956.02597207,0.0002509,2]
[344732421,1733759437382,-250.0,0.00025117,2]
[344732422,1733759437392,-180.932,0.00025117,2]
[344732423,1733759437401,-155.00000162,0.00025788,2]
[344732424,1733759437412,-151.0,0.00025857,5]
[344732425,1733759437425,-587.0,0.00025858,2]
[344732426,1733759437434,-165.0,0.0002589,2]
[344732427,1733759437445,-21320.34127253,0.00026,30]
[344732428,1733759437454,-1002.7,0.00026,31]
[344732429,1733759437464,-4281.08927272,0.00026177,7]
[344732430,1733759437474,-587.0,0.00026491,2]
[344732431,1733759437483,-151.0,0.00026636,5]
[344732432,1733759437495,-3200.0,0.00026899,2]
[344732433,1733759437504,-208.465531,0.00026921,2]
[344732434,1733759437514,-155.00000008,0.00027078,2]
[344732435,1733759437530,-166.0,0.00027185,2]
[344732436,1733759437539,-151.0,0.00027336,2]
[344732437,1733759437549,-644.45,0.00027397,7]
[344732438,1733759437559,-400.0,0.00027397,60]
[344732439,1733759437572,-151.0,0.00027416,6]
[344732440,1733759437582,-500.0,0.00027673,5]
[344732441,1733759437592,-1941.22344134,0.000277,7]
[344732442,1733759437602,-50000.0,0.000277,3]
[344732443,1733759437611,-50000.0,0.000277,5]
[344732444,1733759437621,-49237.15756199,0.000277,6]
[344732445,1733759437633,-762.84243801,0.000277,6]
[344732446,1733759437643,-60.62756199,0.000277,9]
[344732447,1733759437656,-1377.33693172,0.000277,9]
[344732448,1733759437668,-48562.03550629,0.000277,9]
[344732449,1733759437678,-151.0,0.000277,7]
[344732450,1733759437688,-270.973551,0.000277,7]
[344732451,1733759437697,-209.63712,0.000277,7]
[344732452,1733759437707,-209.63712,0.000277,7]
[344732453,1733759437717,-209.63712,0.000277,7]
[344732454,1733759437726,-209.63712,0.000277,7]
[344732455,1733759437735,-209.63712,0.000277,7]
[344732456,1733759437745,-209.63712,0.000277,7]
[344732457,1733759437754,-151.0,0.000277,7]
[344732458,1733759437764,-197.692879,0.000277,7]
[344732459,1733759437777,-151.0,0.000277,7]
[344732460,1733759437790,-151.0,0.000277,7]
[344732461,1733759437799,-151.0,0.000277,7]
[344732462,1733759437809,-151.0,0.000277,7]
[344732463,1733759437819,-151.0,0.000277,7]
[344732464,1733759437829,-151.0,0.000277,7]
[344732465,1733759437839,-151.0,0.000277,7]
[344732466,1733759437848,-151.0,0.000277,7]
[344732467,1733759437857,-151.0,0.000277,7]
[344732468,1733759437866,-151.0,0.000277,7]
[344732469,1733759437876,-151.0,0.000277,7]
[344732470,1733759437885,-151.0,0.000277,7]
[344732471,1733759437894,-218.842512,0.000277,7]
[344732472,1733759437903,-218.842512,0.000277,7]
[344732473,1733759437913,-218.842512,0.000277,7]
[344732474,1733759437922,-218.842512,0.000277,7]
[344732475,1733759437931,-218.842512,0.000277,7]
[344732476,1733759437941,-218.842512,0.000277,7]
[344732477,1733759437952,-261.259426,0.000277,7]
[344732478,1733759437961,-261.259426,0.000277,7]
[344732479,1733759437971,-261.259426,0.000277,7]
[344732480,1733759437980,-261.259426,0.000277,7]
[344732481,1733759437990,-261.259426,0.000277,7]
[344732482,1733759438000,-261.259426,0.000277,7]
[344732483,1733759438010,-248.969877,0.000277,7]
[344732484,1733759438021,-730.926794,0.000277,7]
[344732485,1733759438031,-730.926794,0.000277,7]
[344732486,1733759438040,-730.926794,0.000277,7]
[344732487,1733759438052,-730.926794,0.000277,7]
[344732488,1733759438061,-151.0,0.000277,7]
[344732489,1733759438073,-151.0,0.000277,7]
[344732490,1733759438082,-151.0,0.000277,7]
[344732493,1733759438092,-485.854785,0.000277,7]
[344732495,1733759438102,-485.854785,0.000277,7]
[344732498,1733759438111,-485.854785,0.000277,7]
[344732501,1733759438121,-485.854785,0.000277,7]
[344732503,1733759438133,-485.854785,0.000277,7]
[344732505,1733759438146,-485.854785,0.000277,7]
[344732507,1733759438156,-151.0,0.000277,7]
[344732509,1733759438166,-151.0,0.000277,7]
[344732510,1733759438175,-151.0,0.000277,7]
[344732511,1733759438184,-151.0,0.000277,7]
[344732512,1733759438193,-151.0,0.000277,7]
[344732513,1733759438203,-151.0,0.000277,7]
[344732514,1733759438212,-267.896702,0.000277,7]
[344732515,1733759438221,-267.896702,0.000277,7]
[344732516,1733759438230,-267.896702,0.000277,7]
[344732517,1733759438239,-267.896702,0.000277,7]
[344732518,1733759438248,-151.0,0.000277,7]
[344732519,1733759438258,-151.0,0.000277,7]
[344732520,1733759438270,-151.0,0.000277,7]
[344732521,1733759438279,-151.0,0.000277,7]
[344732522,1733759438288,-1022.146397,0.000277,7]
[344732523,1733759438296,-1022.146397,0.000277,7]
[344732524,1733759438306,-1022.146397,0.000277,7]
[344732526,1733759438315,-1022.146397,0.000277,7]
[344732528,1733759438324,-491.078518,0.000277,7]
[344732530,1733759438333,-491.078518,0.000277,7]
[344732532,1733759438342,-491.078518,0.000277,7]
[344732534,1733759438352,-491.078518,0.000277,7]
[344732542,1733759438458,-772.104159,0.000277,7]
[344732544,1733759438472,-772.104159,0.000277,7]
[344732546,1733759438482,-772.104159,0.000277,7]
[344732547,1733759438491,-772.104159,0.000277,7]
[344732549,1733759438502,-151.0,0.000277,7]
[344732551,1733759438512,-151.0,0.000277,7]
[344732553,1733759438524,-250.245227,0.000277,7]
[344732555,1733759438533,-368.344495,0.000277,7]
[344732556,1733759438543,-368.344495,0.000277,7]
[344732557,1733759438552,-368.344495,0.000277,7]
[344732558,1733759438562,-368.344495,0.000277,7]
[344732559,1733759438571,-151.0,0.000277,7]
[344732560,1733759438581,-151.0,0.000277,7]
[344732562,1733759438591,-745.831652,0.000277,7]
[344732564,1733759438600,-745.831652,0.000277,7]
[344732566,1733759438610,-745.831652,0.000277,7]
[344732567,1733759438619,-745.831652,0.000277,7]
[344732568,1733759438629,-151.0,0.000277,7]
[344732569,1733759438639,-151.0,0.000277,7]
[344732570,1733759438648,-1103.971937,0.000277,7]
[344732571,1733759438658,-1103.971937,0.000277,7]
[344732572,1733759438667,-1103.971937,0.000277,7]
[344732573,1733759438677,-1103.971937,0.000277,7]
[344732574,1733759438686,-150.15,0.000277,7]
[344732575,1733759438696,-914.129176,0.000277,7]
[344732576,1733759438705,-914.129176,0.000277,7]
[344732577,1733759438715,-914.129176,0.000277,7]
[344732578,1733759438724,-914.129176,0.000277,7]
[344732579,1733759438734,-382.800219,0.000277,7]
[344732580,1733759438744,-382.800219,0.000277,7]
[344732581,1733759438759,-150.15,0.000277,7]
[344732582,1733759438771,-150.15,0.000277,7]
[344732583,1733759438783,-382.800219,0.000277,7]
[344732584,1733759438793,-382.800219,0.000277,7]
[344732585,1733759438802,-500.0,0.000277,7]
[344732586,1733759438812,-150.15,0.000277,7]
[344732587,1733759438821,-578.123449,0.000277,7]
[344732588,1733759438831,-578.123449,0.000277,7]
[344732589,1733759438841,-151.0,0.000277,7]
[344732590,1733759438850,-171.337598,0.000277,7]
[344732591,1733759438860,-151.0,0.000277,7]
[344732592,1733759438869,-151.0,0.000277,7]
[344732593,1733759438878,-151.0,0.000277,7]
[344732594,1733759438887,-151.0,0.000277,7]
[344732595,1733759438897,-151.0,0.000277,7]
[344732596,1733759438906,-150.15,0.000277,7]
[344732597,1733759438915,-151.0,0.000277,7]
[344732598,1733759438924,-151.0,0.000277,7]
[344732599,1733759438934,-151.0,0.000277,7]
[344732600,1733759438943,-151.0,0.000277,7]
[344732601,1733759438952,-271.77747,0.000277,7]
[344732602,1733759438962,-448.85281003,0.000277,5]
[344732603,1733759438971,-271.77747,0.000277,7]
[344732604,1733759438980,-276.07309,0.000277,7]
[344732605,1733759438990,-276.07309,0.000277,7]
[344732606,1733759439000,-151.0,0.000277,7]
[344732607,1733759439010,-151.0,0.000277,7]
[344732608,1733759439021,-151.0,0.000277,7]
[344732609,1733759439030,-158.119108,0.000277,7]
[344732610,1733759439039,-150.15,0.00027974,7]
[344732611,1733759439050,-150.15,0.00027974,7]
[344732612,1733759439059,-209.1712422,0.00027974,7]
[344732613,1733759439068,-901.92291477,0.00027974,7]
[344732614,1733759439078,-150.15,0.00027974,7]
[344732615,1733759439090,-199.68,0.00027974,7]
[344732616,1733759439103,-1011.55712821,0.0002799,2]
[344732617,1733759439116,-1362.00296339,0.00028,7]
[344732618,1733759439125,-2276.63080104,0.00028,14]
[344732619,1733759439135,-2929.9114162,0.00028,7]
[344732620,1733759439145,-200.0,0.00028,120]
[344732621,1733759439154,-823.0,0.00028102,2]
[344732622,1733759439163,-150.0,0.00028117,2]
[344732623,1733759439173,-403.0,0.0002816,23]
[344732624,1733759439182,-151.0,0.00028195,6]
[344732625,1733759439196,-500.0,0.00028221,5]
[344732626,1733759439206,-150.15,0.00028248,7]
[344732627,1733759439216,-199.46,0.00028248,7]
[344732628,1733759439225,-150.15,0.00028248,7]
[344732629,1733759439235,-155.0,0.00028432,2]
[344732630,1733759439244,-150.15,0.00028522,7]
[344732631,1733759439254,-195.13458456,0.00028522,7]
[344732632,1733759439263,-644.45,0.00028767,9]
[344732633,1733759439275,-164.75636331,0.00028796,7]
[344732634,1733759439284,-345.361,0.0002884,120]
[344732635,1733759439293,-151.0,0.00028975,7]
[344732636,1733759439303,-2000.0,0.00029,2]
[344732637,1733759439312,-1000.0,0.00029,29]
[344732638,1733759439321,-375.82135735,0.00029,2]
[344732639,1733759439331,-302.72757545,0.00029,2]
[344732640,1733759439340,-153.0,0.00029039,2]
[344732641,1733759439349,-153.0,0.00029039,2]
[344732642,1733759439359,-153.0,0.00029039,2]
[344732643,1733759439368,-153.0,0.00029039,2]
[344732644,1733759439377,-153.0,0.0002904,2]
[344732645,1733759439386,-153.0,0.0002904,2]
[344732646,1733759439395,-153.0,0.0002904,2]
[344732647,1733759439405,-153.0,0.0002904,2]
[344732648,1733759439415,-153.0,0.0002904,2]
[344732649,1733759439425,-153.0,0.0002904,2]
[344732650,1733759439436,-153.0,0.0002904,2]
[344732651,1733759439446,-153.0,0.00029041,2]
[344732652,1733759439455,-153.0,0.00029041,2]
[344732653,1733759439465,-153.0,0.00029041,2]
[344732654,1733759439475,-153.0,0.00029041,2]
[344732655,1733759439485,-153.0,0.00029042,2]
[344732656,1733759439495,-153.0,0.00029042,2]
[344732657,1733759439507,-153.0,0.00029042,2]
[344732658,1733759439518,-153.0,0.00029042,2]
[344732659,1733759439527,-153.0,0.00029042,2]
[344732660,1733759439537,-153.0,0.00029042,2]
[344732661,1733759439547,-153.0,0.00029042,2]
[344732662,1733759439556,-153.0,0.00029044,2]
[344732663,1733759439565,-153.0,0.00029044,2]
[344732664,1733759439575,-153.0,0.00029044,2]
[344732665,1733759439584,-153.0,0.00029044,2]
[344732666,1733759439593,-153.0,0.00029044,2]
[344732667,1733759439602,-153.0,0.00029044,2]
[344732668,1733759439611,-153.0,0.00029044,2]
[344732669,1733759439621,-153.0,0.00029044,2]
[344732670,1733759439630,-153.0,0.00029044,2]
[344732671,1733759439640,-153.0,0.00029044,2]
[344732672,1733759439649,-153.0,0.00029044,2]
[344732673,1733759439658,-153.0,0.00029046,2]
[344732674,1733759439667,-153.0,0.00029046,2]
[344732675,1733759439677,-153.0,0.00029046,2]
[344732676,1733759439686,-153.0,0.00029046,2]
[344732677,1733759439695,-153.0,0.00029047,2]
[344732678,1733759439704,-153.0,0.00029047,2]
[344732679,1733759439714,-153.0,0.00029047,2]
[344732680,1733759439723,-153.0,0.00029047,2]
[344732681,1733759439732,-153.0,0.00029047,2]
[344732682,1733759439741,-153.0,0.00029047,2]
[344732683,1733759439751,-153.0,0.00029047,2]
[344732684,1733759439760,-823.0,0.0002914,2]
[344732685,1733759439772,-500.0,0.00029247,2]
[344732686,1733759439781,-302.72757545,0.0002929,2]
[344732687,1733759439790,-151.0,0.000293,16]
[344732688,1733759439800,-1621.0,0.000295,2]
[344732689,1733759439809,-2501.0,0.000295,4]
[344732690,1733759439819,-302.72757545,0.0002958,2]
[344732691,1733759439829,-49749.78257273,0.000297,2]
[344732692,1733759439838,-209.63712,0.000297,7]
[344732693,1733759439847,-209.63712,0.000297,7]
[344732694,1733759439856,-151.0,0.000297,7]
[344732695,1733759439865,-151.0,0.000297,7]
[344732696,1733759439874,-151.0,0.000297,7]
[344732697,1733759439883,-278.943205,0.000297,7]
[344732698,1733759439893,-218.842512,0.000297,7]
[344732699,1733759439903,-218.842512,0.000297,7]
[344732700,1733759439912,-261.259426,0.000297,7]
[344732701,1733759439922,-261.259426,0.000297,7]
[344732702,1733759439931,-730.926794,0.000297,7]
[344732703,1733759439941,-730.926794,0.000297,7]
[344732704,1733759439951,-151.0,0.000297,7]
[344732705,1733759439960,-485.854785,0.000297,7]
[344732706,1733759439970,-485.854785,0.000297,7]
[344732708,1733759439980,-151.0,0.000297,7]
[344732709,1733759439990,-151.0,0.000297,7]
[344732711,1733759440000,-151.0,0.000297,7]
[344732712,1733759440010,-267.896702,0.000297,7]
[344732713,1733759440022,-267.896702,0.000297,7]
[344732714,1733759440032,-151.0,0.000297,7]
[344732715,1733759440041,-151.0,0.000297,7]
[344732716,1733759440051,-1022.146397,0.000297,7]
[344732717,1733759440061,-1022.146397,0.000297,7]
[344732718,1733759440070,-491.078518,0.000297,7]
[344732719,1733759440080,-491.078518,0.000297,7]
[344732720,1733759440090,-772.104159,0.000297,7]
[344732721,1733759440100,-772.104159,0.000297,7]
[344732722,1733759440109,-151.0,0.000297,7]
[344732724,1733759440119,-368.344495,0.000297,7]
[344732726,1733759440128,-368.344495,0.000297,7]
[344732727,1733759440138,-151.0,0.000297,7]
[344732728,1733759440147,-745.831652,0.000297,7]
[344732731,1733759440156,-745.831652,0.000297,7]
[344732734,1733759440165,-151.0,0.000297,7]
[344732737,1733759440175,-1103.971937,0.000297,7]
[344732740,1733759440184,-1103.971937,0.000297,7]
[344732743,1733759440194,-914.129176,0.000297,7]
[344732745,1733759440203,-914.129176,0.000297,7]
[344732747,1733759440212,-382.800219,0.000297,7]
[344732749,1733759440222,-382.800219,0.000297,7]
[344732751,1733759440233,-578.123449,0.000297,7]
[344732753,1733759440243,-578.123449,0.000297,7]
[344732756,1733759440253,-151.0,0.000297,7]
[344732758,1733759440262,-151.0,0.000297,7]
[344732760,1733759440276,-151.0,0.000297,7]
[344732762,1733759440286,-151.0,0.000297,7]
[344732764,1733759440296,-151.0,0.000297,7]
[344732766,1733759440306,-151.0,0.000297,7]
[344732768,1733759440315,-151.0,0.000297,7]
[344732770,1733759440324,-271.77747,0.000297,7]
[344732772,1733759440334,-271.77747,0.000297,7]
[344732782,1733759440343,-276.07309,0.000297,7]
[344732784,1733759440435,-276.07309,0.000297,7]
[344732786,1733759440444,-151.0,0.000297,7]
[344732788,1733759440454,-151.0,0.00029754,7]
[344732790,1733759440466,-151.0,0.00029754,7]
[344732792,1733759440476,-500.0,0.00029773,5]
[344732794,1733759440485,-1000.0,0.00029776,2]
[344732796,1733759440494,-324594.04166857,0.000298,7]
[344732799,1733759440510,-7690.59999999,0.000298,7]
[344732801,1733759440522,-1950.43192726,0.000298,7]
[344732803,1733759440533,-293.163,0.000298,7]
[344732805,1733759440544,-791.21916588,0.000298,7]
[344732807,1733759440556,-1124.65,0.000298,7]
[344732812,1733759440692,-151.0,0.000277,2]
[344732813,1733759440702,-7521.77,0.000298,7]
[344732814,1733759440714,-90635.35581944,0.000298,7]
[344732815,1733759440726,-102561.86514216,0.000298,7]
[344732816,1733759440735,-1574.59220098,0.000298,7]
[344732817,1733759440745,-209.63712,0.000298,7]
[344732819,1733759440754,-209.63712,0.000298,7]
[344732820,1733759440763,-209.63712,0.000298,7]
[344732822,1733759440775,-209.63712,0.000298,7]
[344732824,1733759440784,-151.0,0.000298,7]
[344732826,1733759440795,-151.0,0.000298,7]
[344732828,1733759440804,-238.437334,0.000298,7]
[344732830,1733759440813,-151.0,0.000298,7]
[344732832,1733759440822,-218.842512,0.000298,7]
[344732834,1733759440831,-218.842512,0.000298,7]
[344732836,1733759440840,-261.259426,0.000298,7]
[344732838,1733759440850,-261.259426,0.000298,7]
[344732840,1733759440859,-730.926794,0.000298,7]
[344732842,1733759440868,-730.926794,0.000298,7]
[344732844,1733759440878,-151.0,0.000298,7]
[344732846,1733759440887,-485.854785,0.000298,7]
[344732848,1733759440896,-485.854785,0.000298,7]
[344732850,1733759440905,-151.0,0.000298,7]
[344732852,1733759440914,-151.0,0.000298,7]
[344732854,1733759440923,-151.0,0.000298,7]
[344732856,1733759440932,-267.896702,0.000298,7]
[344732858,1733759440941,-267.896702,0.000298,7]
[344732860,1733759440950,-151.0,0.000298,7]
[344732862,1733759440960,-151.0,0.000298,7]
[344732864,1733759440969,-1022.146397,0.000298,7]
[344732866,1733759440978,-1022.146397,0.000298,7]
[344732868,1733759440988,-153.24,0.000298,31]
[344732870,1733759440997,-153.24,0.000298,31]
[344732871,1733759441006,-153.24,0.000298,31]
[344732874,1733759441020,-153.24,0.000298,31]
[344732876,1733759441029,-153.24,0.000298,31]
[344732878,1733759441039,-491.078518,0.000298,7]
[344732880,1733759441050,-491.078518,0.000298,7]
[344732881,1733759441060,-772.104159,0.000298,7]
[344732882,1733759441069,-772.104159,0.000298,7]